bitfinex/quotes_BTCUSD_20220115
["timestamp","ask_amount","ask_price","bid_price","bid_amount"]
[1642266609996,0.00013752,43280.0,43276.0,1.57205086]
[1642266610395,0.00012033,43279.0,43276.0,1.57205086]
[1642266610794,0.00010314,43278.0,43276.0,1.57205086]
[1642266610994,0.00010314,43278.0,43277.0,0.69635747]
[1642266611194,0.00084083,43280.0,43277.0,0.24635747]
[1642266611395,0.00084083,43280.0,43278.0,0.0463]
[1642266611695,0.00012033,43279.0,43278.0,0.0463]
[1642266612094,0.10099554,43281.0,43278.0,0.04402965]
[1642266612298,0.00099554,43281.0,43278.0,0.04203196]
[1642266612493,0.00013752,43280.0,43278.0,0.04203196]
[1642266612749,0.00013752,43280.0,43279.0,1.338477]
[1642266612949,0.00013752,43280.0,43279.0,1.384777]
[1642266614548,0.00013752,43280.0,43279.0,1.379777]
[1642266616150,0.00013752,43280.0,43279.0,0.161777]
[1642266616394,0.00013752,43280.0,43279.0,1.011777]
[1642266616596,0.00013752,43280.0,43279.0,2.234777]
[1642266616799,7.752e-05,43280.0,43279.0,2.234777]
[1642266617395,7.752e-05,43280.0,43279.0,2.329777]
[1642266617599,7.752e-05,43280.0,43279.0,1.379777]
[1642266617996,7.752e-05,43280.0,43279.0,1.479777]
[1642266618398,0.0008265,43282.0,43279.0,1.479777]
[1642266618598,0.0008265,43282.0,43280.0,0.7]
[1642266618799,0.1,43286.0,43281.0,0.0463]
[1642266618999,0.1,43286.0,43282.0,0.0463]
[1642266619199,0.1,43286.0,43283.0,0.0463]
[1642266619398,0.00013753,43288.0,43283.0,0.0463]
[1642266619599,0.26284315,43287.0,43283.0,0.0463]
[1642266619800,0.00012034,43287.0,43283.0,0.0463]
[1642266620147,0.00010315,43286.0,43283.0,0.161773]
[1642266620644,8.596e-05,43285.0,43283.0,0.161773]
[1642266620845,8.596e-05,43285.0,43284.0,2.073]
[1642266621048,0.00093454,43287.0,43284.0,2.1193]
[1642266621246,0.1,43289.0,43284.0,1.2693]
[1642266621444,0.00010315,43286.0,43284.0,1.2693]
[1642266621648,0.00010315,43286.0,43285.0,2.67969236]
[1642266621846,0.00093454,43288.0,43285.0,2.72599236]
[1642266622146,0.00012034,43287.0,43286.0,0.05773]
[1642266622345,0.00012034,43287.0,43286.0,0.10403]
[1642266623146,0.00012034,43287.0,43286.0,0.15336397]
[1642266624295,0.00012034,43287.0,43286.0,1.37636397]
[1642266625493,0.00012034,43287.0,43286.0,1.47636397]
[1642266626493,0.00012034,43287.0,43286.0,1.37636397]
[1642266627743,0.00012034,43287.0,43286.0,1.42703]
[1642266630439,0.00012034,43287.0,43286.0,1.92703]
[1642266630642,0.00012034,43287.0,43286.0,1.82703]
[1642266631139,0.23012034,43287.0,43286.0,1.82703]
[1642266631397,0.10093453,43289.0,43287.0,1.157722]
[1642266631594,0.00093453,43289.0,43288.0,3.23024916]
[1642266631894,0.1,43292.0,43288.0,1.64568816]
[1642266632094,0.1,43292.0,43288.0,1.80340854]
[1642266632296,6.876e-05,43291.0,43289.0,1.280719]
[1642266632494,0.0005336,43295.0,43291.0,0.7]
[1642266632695,0.0005336,43295.0,43293.0,1.223]
[1642266632894,0.0005336,43295.0,43294.0,1.2463]
[1642266633299,0.00060236,43295.0,43294.0,0.104019]
[1642266633995,0.00060236,43295.0,43294.0,1.56205712]
[1642266634594,0.00060236,43295.0,43294.0,1.327019]
[1642266635950,0.00060236,43295.0,43294.0,1.427019]
[1642266636748,0.00060236,43295.0,43294.0,1.327019]
[1642266636945,0.00060236,43295.0,43294.0,1.427019]
[1642266637946,0.00060236,43295.0,43294.0,1.927019]
[1642266639201,0.9991,43301.0,43295.0,1.2]
[1642266639397,0.9991,43301.0,43298.0,0.057711]
[1642266639597,8.595e-05,43300.0,43299.0,1.5052862]
[1642266639997,0.00018909,43306.0,43299.0,1.5052862]
[1642266640397,0.33273324,43305.0,43299.0,0.0463]
[1642266640798,0.00015471,43304.0,43300.0,0.05772]
[1642266641102,0.00013752,43303.0,43300.0,0.10402]
[1642266641497,0.00012033,43302.0,43300.0,0.10402]
[1642266641897,0.00010314,43301.0,43300.0,0.10402]
[1642266642097,0.50010314,43301.0,43300.0,0.10402]
[1642266642296,0.00010314,43301.0,43300.0,0.10402]
[1642266642497,0.00010314,43301.0,43300.0,0.0463]
[1642266644951,0.00010314,43301.0,43296.0,0.115436]
[1642266645551,0.0009434,43301.0,43296.0,0.115436]
[1642266645950,0.32243133,43298.0,43296.0,0.115436]
[1642266646151,0.32243133,43298.0,43292.0,0.115451]
[1642266646395,0.32243133,43298.0,43293.0,0.5]
[1642266646792,0.30180009,43297.0,43293.0,0.5]
[1642266647793,0.3009598,43297.0,43293.0,0.5]
[1642266647994,0.3018005,43297.0,43293.0,0.5]
[1642266648897,0.3009598,43297.0,43293.0,0.5]
[1642266649094,0.3018005,43297.0,43293.0,0.5]
[1642266649294,0.3018005,43297.0,43293.0,0.495]
[1642266649894,0.3018005,43297.0,43290.0,0.5]
[1642266650152,0.3009598,43297.0,43290.0,0.5]
[1642266650352,0.3018005,43297.0,43291.0,6.876e-05]
[1642266650554,0.3018005,43297.0,43292.0,0.05773]
[1642266651351,0.3009598,43297.0,43292.0,0.05773]
[1642266651558,0.3018005,43297.0,43292.0,0.05773]
[1642266652452,0.3009598,43297.0,43292.0,0.05773]
[1642266652653,0.30180046,43297.0,43292.0,0.05773]
[1642266653754,0.3009598,43297.0,43292.0,0.05773]
[1642266654004,0.30180046,43297.0,43291.0,6.876e-05]
[1642266654403,0.30180046,43297.0,43290.0,0.50008595]
[1642266654603,0.30180046,43297.0,43291.0,6.876e-05]
[1642266655002,0.00084066,43296.0,43291.0,6.876e-05]
[1642266656205,0.00084067,43296.0,43292.0,0.05773]
[1642266657209,0.45623821,43301.0,43292.0,0.05773]
[1642266657407,0.00084067,43296.0,43292.0,0.05773]
[1642266657643,0.00084067,43296.0,43292.0,0.29817338]
[1642266658245,0.00084067,43296.0,43294.0,0.115442]
[1642266658446,0.00010314,43301.0,43294.0,0.115442]
[1642266658644,0.00084066,43297.0,43294.0,0.115442]
[1642266659348,0.00084066,43297.0,43295.0,0.23285321]
[1642266659745,0.23010314,43301.0,43296.0,0.057718]
[1642266659947,0.00084065,43298.0,43296.0,0.057718]
[1642266660546,0.00084065,43298.0,43296.0,1.280718]
[1642266660947,0.23010314,43301.0,43296.0,1.280718]
[1642266661148,0.00084064,43299.0,43298.0,2.523]
[1642266661401,0.00084064,43299.0,43298.0,2.96808408]
[1642266661599,0.0009094,43299.0,43298.0,3.56808408]
[1642266661903,0.23,43301.0,43300.0,0.057708]
[1642266662099,0.23,43301.0,43300.0,0.104008]
[1642266662799,0.23,43301.0,43300.0,0.454008]
[1642266663001,0.23,43301.0,43300.0,0.954008]
[1642266663302,0.23,43301.0,43300.0,2.53281945]
[1642266663503,0.00044663,43303.0,43300.0,2.59052196]
[1642266663701,0.00044663,43303.0,43302.0,2.43193142]
[1642266663903,0.00044663,43303.0,43302.0,2.47823142]
[1642266664101,0.00044663,43303.0,43302.0,2.57823142]
[1642266664302,0.00044663,43303.0,43302.0,1.42823142]
[1642266664505,0.00010314,43305.0,43302.0,1.92823142]
[1642266664704,0.00054977,43305.0,43304.0,0.915415]
[1642266664905,0.55944663,43308.0,43306.0,0.057707]
[1642266665144,0.59112544,43314.0,43307.0,0.0463]
[1642266665344,0.30122544,43314.0,43307.0,0.0463]
[1642266665945,0.0004875,43313.0,43307.0,0.0463]
[1642266666144,0.27107013,43310.0,43307.0,0.0463]
[1642266666945,0.27107013,43310.0,43307.0,0.104011]
[1642266667747,0.27107013,43310.0,43307.0,0.0463]
[1642266669296,0.50107013,43310.0,43307.0,0.0463]
[1642266670397,0.27107013,43310.0,43307.0,0.0463]
[1642266671198,0.56,43308.0,43307.0,0.0463]
[1642266671598,0.56015471,43308.0,43307.0,0.0463]
[1642266673450,0.56015471,43308.0,43307.0,0.104007]
[1642266674448,0.86905579,43308.0,43307.0,0.104007]
[1642266674647,0.86905579,43308.0,43307.0,0.0463]
[1642266676249,0.87387807,43308.0,43307.0,0.0463]
[1642266678000,0.56497699,43308.0,43307.0,0.0463]
[1642266678900,0.56497699,43308.0,43307.0,1.327006]
[1642266679901,0.56497699,43308.0,43307.0,1.427006]
[1642266680946,0.00497699,43308.0,43307.0,1.427006]
[1642266681146,0.50797699,43308.0,43307.0,0.204006]
[1642266681347,0.50797699,43308.0,43307.0,0.104006]
[1642266682349,0.50797699,43308.0,43307.0,1.55912512]
[1642266682548,0.50797699,43308.0,43307.0,1.5603965]
[1642266682947,0.50797699,43308.0,43307.0,1.32827738]
[1642266683147,0.50797699,43308.0,43307.0,1.42827738]
[1642266684401,0.50797699,43308.0,43307.0,2.16811196]
[1642266685402,0.04641599,43308.0,43307.0,2.56811196]
[1642266685599,0.00084053,43310.0,43307.0,2.16811196]
[1642266685798,0.00084053,43310.0,43309.0,1.223]
[1642266686001,0.00084053,43310.0,43309.0,1.2693]
[1642266686199,0.38463346,43318.0,43309.0,1.2693]
[1642266686200,0.38463346,43318.0,43310.0,0.057701]
[1642266686402,0.00084052,43312.0,43311.0,1.384697]
[1642266687101,0.00084052,43312.0,43311.0,1.484697]
[1642266687302,0.00010314,43314.0,43311.0,1.484697]
[1642266687502,0.00094363,43314.0,43311.0,1.484697]
[1642266687750,8.595e-05,43313.0,43311.0,1.384697]
[1642266688152,0.00084049,43314.0,43312.0,0.85193124]
[1642266688351,0.00084049,43314.0,43312.0,0.04823124]
[1642266688556,0.5479,43319.0,43314.0,0.0577]
[1642266688754,0.00084047,43315.0,43314.0,0.0577]
[1642266689354,0.00084047,43315.0,43314.0,1.56731395]
[1642266689654,0.00010314,43318.0,43314.0,1.427]
[1642266689954,0.3087,43324.0,43316.0,0.115382]
[1642266689955,0.00092641,43317.0,43316.0,0.115382]
[1642266690153,0.00092641,43317.0,43316.0,0.161682]
[1642266690954,8.595e-05,43317.0,43316.0,0.161682]
[1642266693208,8.595e-05,43317.0,43316.0,1.384682]
[1642266693404,8.595e-05,43317.0,43316.0,1.484682]
[1642266694707,8.595e-05,43317.0,43316.0,1.384682]
[1642266694905,8.595e-05,43317.0,43316.0,1.484682]
[1642266696159,0.00084044,43319.0,43318.0,1.223]
[1642266696458,0.00084044,43319.0,43318.0,1.2693]
[1642266696659,0.00084044,43319.0,43318.0,1.3693]
[1642266696862,0.0005336,43329.0,43318.0,1.3693]
[1642266697062,0.00084042,43321.0,43320.0,0.115372]
[1642266697263,0.00084042,43321.0,43320.0,1.384672]
[1642266697661,0.00084042,43321.0,43320.0,1.484672]
[1642266698161,0.25417242,43327.0,43320.0,1.484672]
[1642266698366,0.0008404,43323.0,43320.0,1.484672]
[1642266698764,8.595e-05,43322.0,43320.0,1.484672]
[1642266699198,6.876e-05,43321.0,43320.0,1.484672]
[1642266699598,6.876e-05,43321.0,43320.0,0.261672]
[1642266700001,6.876e-05,43321.0,43320.0,0.161672]
[1642266703949,0.25417242,43327.0,43320.0,0.161672]
[1642266704149,0.25417242,43327.0,43321.0,1.223]
[1642266704349,6.876e-05,43325.0,43322.0,0.0463]
[1642266705350,6.876e-05,43325.0,43322.0,0.103985]
[1642266705950,6.876e-05,43325.0,43323.0,1.223]
[1642266706154,6.876e-05,43325.0,43324.0,0.0463]
[1642266706404,6.876e-05,43325.0,43324.0,1.2693]
[1642266706604,6.876e-05,43325.0,43324.0,0.0463]
[1642266708007,6.876e-05,43325.0,43322.0,0.057685]
[1642266709606,6.876e-05,43325.0,43320.0,0.115372]
[1642266710256,0.00090532,43325.0,43320.0,0.115372]
[1642266711259,6.876e-05,43325.0,43320.0,0.115372]
[1642266711462,0.00090532,43325.0,43320.0,0.115372]
[1642266712259,0.00090532,43325.0,43320.0,1.338372]
[1642266712458,0.00090532,43325.0,43320.0,1.438372]
[1642266713659,6.876e-05,43325.0,43320.0,1.438372]
[1642266713902,0.00090955,43325.0,43320.0,1.438372]
[1642266714108,0.31611651,43322.0,43320.0,1.438372]
[1642266714304,0.31611651,43322.0,43316.0,0.115385]
[1642266714505,0.26349077,43321.0,43316.0,0.115385]
[1642266714702,0.26349077,43321.0,43317.0,6.876e-05]
[1642266715112,0.29108239,43320.0,43317.0,6.876e-05]
[1642266716507,0.9,43319.0,43316.0,0.07085376]
[1642266716708,0.29108239,43320.0,43316.0,0.07085376]
[1642266720466,0.52108239,43320.0,43316.0,0.07085376]
[1642266721420,0.23,43320.0,43316.0,0.07085376]
[1642266721620,0.23,43320.0,43313.0,0.09694776]
[1642266721824,0.23,43320.0,43314.0,1.223]
[1642266722021,0.23,43320.0,43313.0,0.09694776]
[1642266723021,0.23,43320.0,43316.0,0.115385]
[1642266726556,0.23,43320.0,43316.0,0.114785]
[1642266728906,0.23,43320.0,43313.0,0.09694776]
[1642266729108,0.23,43320.0,43312.0,0.00193124]
[1642266729510,0.23,43320.0,43313.0,6.876e-05]
[1642266731410,0.23,43320.0,43313.0,0.05777076]
[1642266731809,0.23,43320.0,43313.0,0.01147076]
[1642266732013,0.00010314,43319.0,43313.0,0.01147076]
[1642266732510,8.595e-05,43318.0,43313.0,0.01147076]
[1642266732956,6.876e-05,43317.0,43313.0,0.01147076]
[1642266733356,0.00010314,43319.0,43313.0,0.01147076]
[1642266733756,8.595e-05,43318.0,43313.0,0.01147076]
[1642266734156,6.876e-05,43317.0,43313.0,0.01147076]
[1642266734457,0.00010314,43319.0,43313.0,0.01147076]
[1642266734857,8.595e-05,43318.0,43313.0,0.01147076]
[1642266735258,6.876e-05,43317.0,43313.0,0.01147076]
[1642266735658,0.00010314,43319.0,43313.0,0.01147076]
[1642266736061,8.595e-05,43318.0,43313.0,0.01147076]
[1642266736506,6.876e-05,43317.0,43313.0,0.01147076]
[1642266736806,0.00010314,43319.0,43313.0,7.076e-05]
[1642266737211,8.595e-05,43318.0,43313.0,7.076e-05]
[1642266737507,6.876e-05,43317.0,43313.0,7.076e-05]
[1642266737709,6.876e-05,43317.0,43312.0,0.00193124]
[1642266737907,0.00010314,43319.0,43313.0,0.057703]
[1642266738309,8.595e-05,43318.0,43313.0,0.057703]
[1642266738712,6.876e-05,43317.0,43313.0,0.057703]
[1642266739109,0.00010314,43319.0,43313.0,0.057703]
[1642266739509,8.595e-05,43318.0,43313.0,0.057703]
[1642266739910,6.876e-05,43317.0,43313.0,0.057703]
[1642266740465,0.00010314,43319.0,43313.0,0.057703]
[1642266740865,8.595e-05,43318.0,43313.0,0.057703]
[1642266741267,6.876e-05,43317.0,43313.0,0.057703]
[1642266741666,0.00010314,43319.0,43313.0,0.057703]
[1642266741867,0.4,43318.0,43313.0,3e-06]
[1642266742067,8.595e-05,43318.0,43313.0,3e-06]
[1642266742270,6.876e-05,43317.0,43313.0,3e-06]
[1642266742666,0.00010314,43319.0,43313.0,3e-06]
[1642266743066,8.595e-05,43318.0,43313.0,0.057706]
[1642266743467,6.876e-05,43317.0,43313.0,0.057706]
[1642266743917,0.00010314,43319.0,43313.0,0.057706]
[1642266744318,8.595e-05,43318.0,43313.0,0.057706]
[1642266744721,0.22506876,43320.0,43313.0,0.057706]
[1642266745123,0.22499676,43320.0,43313.0,0.057706]
[1642266747021,0.22499676,43320.0,43313.0,6e-06]
[1642266747222,0.22499676,43320.0,43312.0,0.00193124]
[1642266749659,0.22499676,43320.0,43314.0,0.057702]
[1642266752007,0.22499676,43320.0,43314.0,0.004102]
[1642266754109,0.22499676,43320.0,43317.0,0.69086883]
[1642266754309,0.22499676,43320.0,43318.0,0.057694]
[1642266755009,0.22499676,43320.0,43318.0,0.74856283]
[1642266755657,0.22499676,43320.0,43318.0,0.7979106]
[1642266756257,0.22499676,43320.0,43318.0,0.74856283]
[1642266756860,0.003935,43319.0,43318.0,0.68478266]
[1642266757061,0.003935,43319.0,43318.0,0.63596266]
[1642266757764,0.003935,43319.0,43318.0,0.68531218]
[1642266758361,0.003935,43319.0,43318.0,0.04934952]
[1642266758562,0.003935,43319.0,43318.0,0.057693]
[1642266759016,0.003935,43319.0,43318.0,0.10704252]
[1642266762119,0.003935,43319.0,43318.0,0.06224252]
[1642266762962,0.003935,43319.0,43318.0,0.04934952]
[1642266763663,0.003935,43319.0,43317.0,0.04934952]
[1642266764063,0.003935,43319.0,43318.0,0.057693]
[1642266764763,0.003935,43319.0,43318.0,0.10704252]
[1642266764965,0.003935,43319.0,43318.0,0.04934952]
[1642266765965,0.003935,43319.0,43317.0,0.04934952]
[1642266767103,0.003935,43319.0,43317.0,0.00474952]
[1642266767507,0.003935,43319.0,43318.0,0.057691]
[1642266769006,0.003935,43319.0,43317.0,0.0463]
[1642266769409,0.003935,43319.0,43316.0,0.115387]
[1642266769908,0.003935,43319.0,43317.0,0.69079072]
[1642266770565,0.003935,43319.0,43316.0,0.115387]
[1642266771263,0.003935,43319.0,43318.0,0.69078931]
[1642266771861,0.003935,43319.0,43316.0,0.115387]
[1642266772062,0.003935,43319.0,43316.0,0.070787]
[1642266772664,0.003935,43319.0,43318.0,0.69077999]
[1642266773469,0.003935,43319.0,43318.0,0.74847099]
[1642266773665,0.003935,43319.0,43318.0,2.35266866]
[1642266773937,0.22499676,43320.0,43319.0,1.5]
[1642266774133,0.22499676,43320.0,43319.0,1.54355271]
[1642266774333,0.00077931,43325.0,43319.0,1.96313073]
[1642266774533,0.00077931,43325.0,43319.0,2.02080773]
[1642266774734,0.53258693,43331.0,43320.0,1.223]
[1642266774935,0.53258693,43331.0,43323.0,0.14941147]
[1642266775135,0.53258693,43331.0,43324.0,0.0463]
[1642266775136,0.00085321,43328.0,43324.0,0.0463]
[1642266775333,0.00085321,43328.0,43326.0,1.223]
[1642266775532,0.00085321,43328.0,43327.0,0.0463]
[1642266776137,6.876e-05,43328.0,43327.0,0.0463]
[1642266776735,6.876e-05,43328.0,43327.0,1.384655]
[1642266777136,6.876e-05,43328.0,43327.0,0.116855]
[1642266777535,0.00078444,43330.0,43327.0,0.116855]
[1642266778579,0.33984053,43332.0,43327.0,0.116855]
[1642266778881,0.33562138,43332.0,43327.0,0.116855]
[1642266780280,0.9901,43333.0,43327.0,0.116855]
[1642266780482,0.9901,43333.0,43327.0,1.339855]
[1642266780680,6.876e-05,43332.0,43327.0,1.339855]
[1642266782034,6.876e-05,43332.0,43327.0,1.295155]
[1642266783440,6.876e-05,43332.0,43327.0,0.072155]
[1642266783739,6.876e-05,43332.0,43325.0,0.00070257]
[1642266783944,0.23409576,43332.0,43325.0,0.00070257]
[1642266784238,0.37634756,43331.0,43325.0,0.00070257]
[1642266784438,0.26844193,43327.0,43325.0,0.00070257]
[1642266784638,0.00128356,43331.0,43323.0,0.09173447]
[1642266784838,0.00128356,43331.0,43325.0,0.00070259]
[1642266785667,0.25368347,43330.0,43325.0,0.00070259]
[1642266785868,0.25368347,43330.0,43324.0,6.876e-05]
[1642266786070,0.25368347,43330.0,43325.0,0.00070259]
[1642266786268,0.60171072,43326.0,43325.0,0.00070259]
[1642266786472,0.25171072,43326.0,43325.0,0.00070259]
[1642266787071,0.4,43325.0,43323.0,0.04710323]
[1642266787269,0.25171072,43326.0,43323.0,0.04780587]
[1642266788169,0.25171072,43326.0,43323.0,0.04710323]
[1642266791927,0.25171072,43326.0,43323.0,0.63891967]
[1642266792129,0.25171072,43326.0,43323.0,0.59411967]
[1642266792766,0.25171072,43326.0,43323.0,0.65180967]
[1642266792964,0.25171072,43326.0,43323.0,0.59411967]
[1642266795766,0.25368347,43330.0,43323.0,0.59411967]
[1642266795966,0.00128356,43331.0,43323.0,0.59411967]
[1642266796167,8.595e-05,43329.0,43323.0,0.59411967]
[1642266796414,0.00010314,43330.0,43323.0,0.59411967]
[1642266796610,6.876e-05,43328.0,43324.0,0.59181644]
[1642266796813,8.595e-05,43329.0,43324.0,0.59251906]
[1642266797010,0.31020925,43330.0,43324.0,0.59251906]
[1642266797210,6.876e-05,43328.0,43324.0,0.54781906]
[1642266797409,8.595e-05,43329.0,43324.0,0.54781906]
[1642266797610,0.3052725,43330.0,43324.0,0.54781906]
[1642266797810,0.3052725,43330.0,43325.0,6.876e-05]
[1642266799213,0.3052725,43330.0,43325.0,0.00077135]
[1642266800267,0.3052725,43330.0,43325.0,6.876e-05]
[1642266800471,0.3052725,43330.0,43325.0,0.00077135]
[1642266800668,0.3052725,43330.0,43325.0,0.00070259]
[1642266801370,0.3052725,43330.0,43324.0,8.595e-05]
[1642266801568,0.3052725,43330.0,43325.0,0.00070259]
[1642266802169,1.65,43329.0,43322.0,0.7641326]
[1642266802369,0.3052725,43330.0,43322.0,0.7641326]
[1642266802569,8.595e-05,43329.0,43322.0,0.7641326]
[1642266802969,6.876e-05,43328.0,43322.0,0.7641326]
[1642266803371,0.3052725,43330.0,43323.0,1.03055088]
[1642266803772,0.3052725,43330.0,43323.0,1.03063683]
[1642266805415,0.3052725,43330.0,43325.0,0.59198572]
[1642266806417,0.30620665,43330.0,43325.0,0.59198572]
[1642266807316,0.3052725,43330.0,43325.0,0.54708572]
[1642266807516,0.30620431,43330.0,43325.0,0.54708572]
[1642266808766,0.30620431,43330.0,43325.0,0.54208572]
[1642266809772,0.3052725,43330.0,43325.0,0.54208572]
[1642266809968,0.30620431,43330.0,43325.0,0.54208572]
[1642266810968,0.3052725,43330.0,43325.0,0.54208572]
[1642266811169,0.30620665,43330.0,43325.0,0.54208572]
[1642266812220,0.3052725,43330.0,43325.0,0.49738572]
[1642266812423,0.30620665,43330.0,43325.0,0.49738572]
[1642266813018,0.30620665,43330.0,43323.0,0.69135533]
[1642266813220,0.30620665,43330.0,43323.0,0.0007825]
[1642266813419,0.3052725,43330.0,43323.0,8.595e-05]
[1642266813620,0.30620664,43330.0,43323.0,0.00078251]
[1642266814022,0.30620664,43330.0,43324.0,6.876e-05]
[1642266814620,0.3052725,43330.0,43324.0,6.876e-05]
[1642266814925,0.30620664,43330.0,43324.0,6.876e-05]
[1642266815665,0.30620664,43330.0,43325.0,0.057687]
[1642266815864,0.3052725,43330.0,43325.0,0.057687]
[1642266816065,0.30620664,43330.0,43325.0,0.057687]
[1642266816667,0.30620664,43330.0,43324.0,6.876e-05]
[1642266817066,0.3052725,43330.0,43324.0,6.876e-05]
[1642266817270,0.26155162,43326.0,43323.0,0.64643814]
[1642266818067,0.26155162,43326.0,43323.0,0.00069655]
[1642266818267,0.26155162,43326.0,43319.0,0.115379]
[1642266818469,0.26155162,43326.0,43322.0,0.00069658]
[1642266819314,0.26155162,43326.0,43320.0,6.876e-05]
[1642266819513,0.26155162,43326.0,43322.0,0.00069659]
[1642266820516,0.26155162,43326.0,43323.0,0.24292474]
[1642266821116,0.26155162,43326.0,43325.0,0.59214964]
[1642266821416,0.68331284,43326.0,43325.0,0.59214964]
[1642266821816,0.26155162,43326.0,43325.0,0.59214964]
[1642266822416,0.26155162,43326.0,43323.0,0.5479462]
[1642266824080,0.22040593,43325.0,43323.0,0.5479462]
[1642266824577,0.22040593,43325.0,43320.0,6.876e-05]
[1642266824777,0.22040593,43325.0,43320.0,0.69098107]
[1642266824977,1.52886723,43321.0,43320.0,0.69091231]
[1642266825281,0.4091139,43326.0,43320.0,0.69091231]
[1642266825478,0.23684389,43325.0,43319.0,8.595e-05]
[1642266826418,0.33487665,43322.0,43319.0,8.595e-05]
[1642266826618,0.21755149,43321.0,43319.0,8.595e-05]
[1642266826820,0.21755149,43321.0,43320.0,0.00077743]
[1642266827020,0.91755149,43321.0,43320.0,0.00077743]
[1642266827421,0.91755149,43321.0,43318.0,0.69091231]
[1642266827422,1.525064,43320.0,43318.0,0.64707569]
[1642266827621,0.20727979,43319.0,43318.0,0.64707569]
[1642266828022,0.20727979,43319.0,43309.0,0.2904]
[1642266828424,0.51500953,43319.0,43312.0,0.00012033]
[1642266829423,0.51500953,43319.0,43313.0,0.057703]
[1642266829823,0.51500953,43319.0,43314.0,8.595e-05]
[1642266830272,0.51500953,43319.0,43314.0,0.17678986]
[1642266830471,0.51500953,43319.0,43314.0,0.17719155]
[1642266830668,0.51500953,43319.0,43315.0,6.876e-05]
[1642266831670,0.51500953,43319.0,43315.0,0.00075286]
[1642266832471,0.51500953,43319.0,43313.0,0.01355486]
[1642266832672,0.51500953,43319.0,43316.0,0.17670391]
[1642266833373,0.51500953,43319.0,43314.0,0.17670391]
[1642266833914,0.51500953,43319.0,43318.0,0.59210578]
[1642266834318,0.51507829,43319.0,43318.0,0.59210578]
[1642266834918,1.06507829,43319.0,43318.0,0.59210578]
[1642266835116,0.89014229,43319.0,43318.0,0.59210578]
[1642266835317,0.89014229,43319.0,43315.0,0.59210578]
[1642266835620,0.51507829,43319.0,43315.0,0.59210578]
[1642266836217,0.51507829,43319.0,43316.0,0.59210578]
[1642266837416,0.51507829,43319.0,43315.0,0.54740578]
[1642266838289,0.51046744,43319.0,43315.0,0.54740578]
[1642266839788,0.3077985,43319.0,43315.0,0.54740578]
[1642266840087,0.3077985,43319.0,43314.0,0.74845372]
[1642266840289,6.876e-05,43319.0,43314.0,0.74845372]
[1642266840997,6.876e-05,43319.0,43313.0,0.69075272]
[1642266841187,6.876e-05,43319.0,43313.0,0.69143101]
[1642266841619,6.876e-05,43319.0,43313.0,0.80682501]
[1642266842219,6.876e-05,43319.0,43313.0,0.80614672]
[1642266842421,6.876e-05,43319.0,43313.0,0.76222502]
[1642266842621,6.876e-05,43319.0,43314.0,0.76363]
[1642266842822,0.4759,43315.0,43314.0,0.76363]
[1642266843021,0.4759,43315.0,43314.0,1.98663]
[1642266843220,0.4759,43315.0,43314.0,1.34047728]
[1642266844321,0.4759,43315.0,43314.0,0.11747728]
[1642266844322,0.36616543,43315.0,43314.0,0.11747728]
[1642266844723,0.36616543,43315.0,43313.0,0.115394]
[1642266845672,0.36616543,43315.0,43312.0,0.11607232]
[1642266845874,0.36616543,43315.0,43312.0,0.115394]
[1642266846071,0.36616543,43315.0,43312.0,0.11607233]
[1642266847075,0.36616543,43315.0,43312.0,0.115394]
[1642266847375,0.36616543,43315.0,43312.0,0.070694]
[1642266850418,0.36616543,43315.0,43312.0,1.293694]
[1642266850618,0.36616543,43315.0,43312.0,1.393694]
[1642266851221,0.36616543,43315.0,43312.0,0.070694]
[1642266851425,0.2311891,43314.0,43311.0,0.1158756]
[1642266851618,0.2311891,43314.0,43311.0,0.0004826]
[1642266851817,0.36616543,43315.0,43309.0,0.78956437]
[1642266852018,0.36616543,43315.0,43310.0,0.00053715]
[1642266852218,0.28532791,43313.0,43310.0,0.0006231]
[1642266852418,0.28532791,43313.0,43309.0,0.74558747]
[1642266852867,0.28532791,43313.0,43310.0,0.69075643]
[1642266854268,0.28532791,43313.0,43310.0,0.74846343]
[1642266854470,0.36616543,43315.0,43310.0,0.057707]
[1642266854671,0.20113231,43314.0,43310.0,0.057707]
[1642266854868,0.20120107,43314.0,43310.0,0.057707]
[1642266855269,0.20120107,43314.0,43313.0,0.59205335]
[1642266855771,0.65120107,43314.0,43313.0,0.59205335]
[1642266855970,0.65120107,43314.0,43312.0,0.59205335]
[1642266856169,1.35439466,43313.0,43312.0,0.59205335]
[1642266856418,6.876e-05,43314.0,43312.0,0.59205335]
[1642266856623,0.21939824,43314.0,43312.0,0.59205335]
[1642266857421,0.20666574,43314.0,43312.0,0.54735335]
[1642266857622,6.876e-05,43314.0,43312.0,0.54735335]
[1642266858021,0.00506876,43314.0,43310.0,0.69072891]
[1642266858221,0.20783741,43314.0,43311.0,0.69072891]
[1642266859022,0.20783741,43314.0,43309.0,0.74006799]
[1642266859225,0.45486483,43314.0,43309.0,0.74006799]
[1642266859621,0.45486483,43314.0,43309.0,0.69072891]
[1642266859822,0.45486483,43314.0,43311.0,0.69072891]
[1642266860022,0.375064,43313.0,43311.0,0.69072891]
[1642266860669,0.25209618,43314.0,43311.0,0.69072891]
[1642266860870,0.00506876,43314.0,43311.0,0.69072891]
[1642266861070,0.00506876,43314.0,43312.0,0.69072891]
[1642266862572,0.20551501,43314.0,43312.0,0.64592891]
[1642266862772,0.00506876,43314.0,43312.0,0.64592891]
[1642266864226,0.00506876,43314.0,43310.0,0.057706]
[1642266864824,0.00506876,43314.0,43311.0,0.22774066]
[1642266865228,0.00506876,43314.0,43312.0,0.115397]
[1642266866225,0.00506876,43314.0,43313.0,0.22774066]
[1642266866427,0.00271812,43314.0,43313.0,0.22774066]
[1642266867427,0.00271812,43314.0,43313.0,0.18294066]
[1642266868069,0.00271812,43314.0,43313.0,0.24063766]
[1642266869877,0.00271812,43314.0,43313.0,1.03004609]
[1642266871074,0.00271812,43314.0,43313.0,0.24063766]
[1642266871723,0.00271812,43314.0,43313.0,1.03010665]
[1642266872224,0.00271812,43314.0,43313.0,0.84716599]
[1642266872622,0.00271812,43314.0,43313.0,0.80246599]
[1642266874423,0.00271812,43314.0,43313.0,0.012997]
[1642266875870,0.00271812,43314.0,43313.0,0.80246599]
[1642266876772,2.09577443,43322.0,43313.0,0.80246599]
[1642266877070,6.876e-05,43318.0,43312.0,0.90486599]
[1642266877473,6.876e-05,43318.0,43312.0,0.86006599]
[1642266877770,6.876e-05,43318.0,43317.0,0.69078273]
[1642266878921,0.20030105,43318.0,43317.0,0.69078273]
[1642266879119,0.57536505,43318.0,43317.0,0.69078273]
[1642266879421,0.37513276,43318.0,43317.0,0.69078273]
[1642266879818,0.37513276,43318.0,43317.0,0.59215835]
[1642266880023,6.876e-05,43318.0,43317.0,0.59215835]